[Event "Fagernes Chess GM-Swiss 2024"]
[Site "Fagernes"]
[Date "2024.03.28"]
[Round "6.9"]
[White "Kvaloy, Aksel Bu"]
[Black "Pranav Anand"]
[Result "1/2-1/2"]
[ECO "B48"]
[WhiteElo "2454"]
[BlackElo "2519"]
[Annotator "TA"]
[PlyCount "141"]
[EventDate "2024.03.25"]
[EventType "swiss"]
[EventCountry "NOR"]
[SourceTitle "playchess.com"]
[Source "ChessBase"]
[SourceQuality "1"]
[TimeControl "40/6000+30:2400+30"]

{[%evp 14,141,39,21,33,0,14,26,14,12,14,0,10,-20,-19,-50,-48,-43,-68,-72,-86,-121,-113,-110,-120,-131,-106,-114,-120,-111,-111,-113,-99,-104,-98,-95,-82,-99,-76,-98,-80,-79,-79,-89,-95,-105,-24,-104,-106,-108,-108,-102,-104,-113,-91,-96,-45,-64,-62,-73,-63,-66,-62,-100,-47,-47,-45,-46,-7,-8,-7,-8,0,-8,0,-12,-8,-8,-9,-8,0,0,0,0,0,-16,-16,-16,0,0,0,0,0,0,0,0,0,0,0,0,0,0,0,0,0,0,0,0,0,0,0,0,0,0,0,0,0,0,0,0,0,0,0,0,0,0,0,0,0,0]} 1. e4 {[%emt 0:01:36]} c5 {[%emt 0:00:36]} 2. Nf3 {[%emt 0:01:07]} e6 {[%emt 0:00:24]} 3. d4 {[%emt 0:00:20]} cxd4 {[%emt 0:00:06]} 4. Nxd4 {[%emt 0:00:04]} Nc6 {[%emt 0:00:06]} 5. Nc3 {[%emt 0:00:26]} Qc7 {[%emt 0:00:06]} 6. Be3 {[%emt 0:00:32]} a6 {[%emt 0:00:06]} 7. a3 {[%emt 0:00:42]} b5 {[%emt 0:00:06]} 8. Nxc6 {[%emt 0:00:07]} Qxc6 {[%emt 0:00:05]} 9. h4 {[%emt 0:00:15]} Bb7 {[%emt 0:06:30]} 10. h5 {[%emt 0:00:25]} h6 {[%emt 0:00:04] White has an edge.} 11. Rh3 {[%emt 0:00:20]} Rc8 {[%emt 0:05:13]} 12. Be2 {[%emt 0:13:03]} Qc7 {[%emt 0:12:15]} 13. Qd3 {[%emt 0:26:24]} Nf6 {[%emt 0:05:54]} 14. Rd1 {[%emt 0:17:21]} b4 $1 {[%emt 0:08:16]} 15. axb4 {[%emt 0:00:08]} Bxb4 {[%emt 0:00:06]} 16. Kf1 {[%emt 0:02:24]} Bxc3 {[%emt 0:13:18]} 17. bxc3 {[%emt 0:01:05]} Bxe4 {[%emt 0:09:35]} (17... Nxe4 18. Bf4 d6 (18... Qxf4 $2 19. Qxd7+ Kf8 20. Rf3 $18) 19. c4 $15) 18. Qxa6 {[%emt 0:05:35][%cal Oe3f4]} O-O {[%emt 0:04:01]} (18... Qxc3 $2 19. Bxh6 Qc6 (19... Qxc2 $2 20. Bxg7 Rg8 21. h6 $18) 20. Qxc6 (20. Bxg7 Bxg2+ 21. Ke1 Bxh3 $14) 20... Rxc6 21. Bxg7 $18) 19. Rg3 {[%emt 0:08:17]} Ra8 {[%emt 0:04:06]} (19... Qxc3 $2 20. Bd4 $18 (20. Bxh6 Qxg3 21. fxg3 gxh6 $18) (20. Bxh6 Qxg3 21. fxg3 gxh6 $18)) 20. Qb6 {[%emt 0:04:22]} Qxb6 {[%emt 0:00:54]} (20... Qxc3 $2 {is the wrong capture.} 21. Bd4 $18 (21. Bxh6 Qxg3 22. fxg3 gxh6 $18) (21. Bxh6 Qxg3 22. fxg3 gxh6 $18)) 21. Bxb6 {[%emt 0:00:08] A strong pair of Bishops.} Bxc2 {[%emt 0:00:04]} 22. Rc1 {[%emt 0:00:21][%cal Ob6e3]} Be4 {[%emt 0:04:39]} 23. Bd4 {[%emt 0:02:06]} Kh8 {[%emt 0:00:54]} 24. c4 {[%emt 0:02:08]} Bc6 {[%emt 0:07:06]} 25. Kg1 {[%emt 0:12:32]} Rg8 {[%emt 0:02:43]} 26. Bf3 {[%emt 0:01:37]} Ne4 {[%emt 0:03:30]} 27. Rg4 {[%emt 0:03:47]} Nd6 {[%emt 0:01:47]} 28. Bxc6 dxc6 {[%emt 0:00:01]} 29. Rf4 {[%emt 0:03:11]} Ra5 {[%emt 0:03:46] Repels Be5} (29... f6 $1 $17 {And now ...e5 would win.} 30. Bc5 e5) 30. c5 {[%emt 0:01:47]} (30. Rd1 $11) 30... Nb5 $1 $17 {[%emt 0:00:16]} 31. Be3 {[%emt 0:01:44]} Ra7 {[%emt 0:00:22]} 32. Rb4 {[%emt 0:01:01]} Rd8 {[%emt 0:01:28]} 33. Rbb1 {[%emt 0:00:42]} Rd5 {[%emt 0:01:08]} 34. Ra1 {[%emt 0:00:08]} Rc7 {[%emt 0:05:20]} (34... Rxa1 $17 35. Rxa1 e5 (35... Rxh5 36. Ra6 $17)) 35. Ra8+ $15 {[%emt 0:00:37]} Kh7 {[%emt 0:00:01]} 36. g4 {[%emt 0:00:30] [#]} f5 $1 {[%emt 0:02:11]} 37. Re8 {[%emt 0:00:41]} fxg4 {[%emt 0:00:51]} 38. Rxe6 {[%emt 0:00:28] [#]} Rxh5 {[%emt 0:00:16]} (38... Nd4 $1 $17 {[%cal Rd4e6]} 39. Bxd4 Rxd4) 39. Rc4 {[%emt 0:00:40]} Rf5 {[%emt 0:03:52] Hoping for ...h5.} 40. Rxg4 {[%emt 0:00:25]} Na7 {[%emt 0:04:43]} 41. Kg2 {[%emt 0:05:43] The position is equal.} Rcf7 {[%emt 0:03:26]} 42. Ra4 {[%emt 0:01:24]} h5 {[%emt 0:07:04]} 43. Rh4 {[%emt 0:05:12]} Rd7 {[%emt 0:03:50]} 44. Rhe4 {[%emt 0:05:55]} Kg8 {[%emt 0:02:45]} 45. Re8+ {[%emt 0:03:26]} Kf7 {[%emt 0:01:51]} 46. Rh8 {[%emt 0:03:23]} Rfd5 {[%emt 0:10:32]} 47. Kg3 {[%emt 0:08:25]} Rd8 {[%emt 0:06:09]} 48. Rxd8 {[%emt 0:01:54]} Rxd8 $11 {[%emt 0:00:05][%mdl 4096] Endgame. KRB-KRN} 49. Ra4 {[%emt 0:01:09]} Nb5 {[%emt 0:01:04]} 50. Kh4 {[%emt 0:00:46]} g6 {[%emt 0:04:34]} 51. Ra6 {[%emt 0:00:53]} Rc8 {[%emt 0:00:00]} 52. Kg5 {[%emt 0:00:26]} Kg7 {[%emt 0:01:13]} (52... Nc7 $5 53. Ra7 $8 Ke6 $11) 53. Rb6 {[%emt 0:01:56]} Rc7 {[%emt 0:00:58]} 54. Bf4 {[%emt 0:02:06]} Rf7 {[%emt 0:00:12] Strongly threatening ...Rf5+.} 55. Be5+ {[%emt 0:00:05]} Kh7 {[%emt 0:00:03]} 56. Bf6 {[%emt 0:00:36][%cal Ob6b8] Rb8! would now be deadly.} Nd4 {[%emt 0:01:07]} 57. Bxd4 {[%emt 0:00:37][%cal Od4f6] Intending Bf6! and mate. KRB-KR} Rf5+ {[%emt 0:00:01]} 58. Kh4 {[%emt 0:00:16]} Rf4+ {[%emt 0:00:01]} 59. Kg3 {[%emt 0:00:40]} Rxd4 {[%emt 0:00:05]} 60. Rxc6 {[%emt 0:00:06] KR-KR} Rc4 {[%emt 0:00:14]} 61. Rc8 {[%emt 0:01:30]} h4+ {[%emt 0:00:35]} 62. Kh3 {[%emt 0:01:27]} g5 {[%emt 0:00:21]} 63. c6 {[%emt 0:01:31]} Rc3+ {[%emt 0:00:46]} 64. Kg4 {[%emt 0:01:20]} h3 {[%emt 0:00:25] ( -> ...h2)} 65. Rd8 {[%emt 0:00:29]} h2 {[%emt 0:00:49]} 66. Rd7+ {[%emt 0:00:47]} Kg6 {[%emt 0:00:10]} 67. Rd6+ {[%emt 0:00:05]} Kg7 {[%emt 0:00:04]} 68. Rd7+ {[%emt 0:00:59]} Kf6 {[%emt 0:00:23]} 69. Rh7 {[%emt 0:00:40]} Rc4+ {[%emt 0:00:10]} 70. Kg3 {[%emt 0:00:08]} Rxc6 {[%emt 0:00:08]} 71. Rxh2 {[%emt 0:00:12] Weighted Error Value: White=0.10 (very precise) /Black=0.10 (very precise) .  Mistake:       	White=1     	Black=3      Inaccurate:     	White=5     	Black=1      OK:         	White=30    	Black=22     Best:        	White=6     	Black=5      Strong:       	---       	Black=3} 1/2-1/2

[Event "Fagernes Chess GM-Swiss 2024"]
[Site "Fagernes"]
[Date "2024.03.28"]
[Round "6.10"]
[White "Tsolakidou, Stavroula"]
[Black "Can, Isik"]
[Result "1/2-1/2"]
[ECO "B60"]
[WhiteElo "2424"]
[BlackElo "2493"]
[Annotator "TA"]
[PlyCount "116"]
[EventDate "2024.03.25"]
[EventType "swiss"]
[EventCountry "NOR"]
[SourceTitle "playchess.com"]
[Source "ChessBase"]
[SourceQuality "1"]
[TimeControl "40/6000+30:2400+30"]

{[%evp 28,116,72,74,54,58,114,95,122,118,129,131,146,45,172,143,178,178,228,216,209,191,180,160,204,158,168,151,149,149,152,158,170,182,161,111,111,95,98,100,242,253,215,213,327,327,350,301,301,301,305,245,213,80,89,0,0,0,0,0,0,0,0,0,0,0,0,0,0,0,0,0,0,0,0,0,0,0,0,0,0,0,0,0,0,0,0,0,0,0,0]} 1. e4 {[%emt 0:00:51]} c5 {[%emt 0:01:54]} 2. Nf3 {[%emt 0:00:08]} d6 {[%emt 0:00:06]} 3. d4 {[%emt 0:00:09]} cxd4 {[%emt 0:00:04]} 4. Nxd4 {[%emt 0:00:06]} Nf6 {[%emt 0:00:04]} 5. Nc3 {[%emt 0:00:07]} Nc6 {[%emt 0:00:04]} 6. Bg5 {[%emt 0:00:51]} Bd7 {[%emt 0:00:06]} 7. Nxc6 {[%emt 0:01:26] B60: Sicilian: Richter-Rauzer: Unusual Black 6th moves and 6...Bd7 without 7 Qd2.} Bxc6 {[%emt 0:01:39]} 8. Bxf6 {[%emt 0:00:10]} gxf6 {[%emt 0:00:05]} 9. Bb5 {[%emt 0:00:09]} Qa5 {[%emt 0:05:48]} 10. Bxc6+ {[%emt 0:06:52]} bxc6 {[%emt 0:00:04]} 11. O-O $146 {[%emt 0:04:07]} ({Predecessor:} 11. Qd3 Rb8 12. b3 Rg8 13. g3 f5 14. O-O Bg7 15. b4 Qa3 16. Ne2 Qxd3 17. cxd3 Bxa1 18. Rxa1 fxe4 19. dxe4 Rxb4 {0-1 Avila Rodriguez,J (2239)-Wieczorek,O (2494) Titled Tuesday intern op 22nd Aug Late blitz 2023 (1)}) 11... h5 {[%emt 0:04:34]} 12. Qd3 {[%emt 0:06:11]} h4 {[%emt 0:07:41]} 13. Ne2 {[%emt 0:11:52]} e6 {[%emt 0:19:58]} 14. c4 {[%emt 0:03:47]} Rg8 {[%emt 0:07:07]} 15. f4 {[%emt 0:04:46]} Rd8 {[%emt 0:08:33]} 16. Kh1 {[%emt 0:03:09]} Bh6 {[%emt 0:07:01]} (16... d5 $14) 17. a3 {[%emt 0:09:51]} Qh5 {[%emt 0:04:11]} 18. Rad1 {[%emt 0:08:22]} c5 {[%emt 0:03:54]} 19. b4 {[%emt 0:03:02]} Ke7 {[%emt 0:00:51]} 20. b5 {[%emt 0:03:13]} (20. Nc3 $16) 20... Rd7 {[%emt 0:03:07]} (20... Qg4 $14 21. Rf2 f5) 21. a4 $18 {[%emt 0:01:15]} Qg4 {[%emt 0:01:15] [#]} 22. Rf2 $1 {[%emt 0:02:08]} Rgd8 {[%emt 0:00:21]} (22... Rdd8 $142 23. h3 Qh5) 23. h3 $18 {[%emt 0:08:45]} Qh5 {[%emt 0:03:51]} 24. f5 {[%emt 0:00:32]} Qg5 {[%emt 0:02:34]} 25. Rdf1 {[%emt 0:05:50]} Rg8 {[%emt 0:05:37]} 26. Qf3 {[%emt 0:02:23]} Rf8 {[%emt 0:00:12]} 27. Nf4 {[%emt 0:09:51]} Qxf4 {[%emt 0:02:18]} 28. Qxf4 {[%emt 0:00:04]} Bxf4 {[%emt 0:00:03]} 29. fxe6 {[%emt 0:00:15]} fxe6 {[%emt 0:02:14]} 30. Rxf4 {[%emt 0:00:04]} d5 {[%emt 0:00:29]} 31. cxd5 {[%emt 0:01:52]} (31. Rxh4 dxe4 (31... dxc4 32. e5 $14) 32. Rxe4 e5) (31. exd5 $18 {Re1 is the strong threat.} exd5 32. Rxh4) 31... exd5 {[%emt 0:00:05]} 32. exd5 {[%emt 0:00:10]} Rxd5 {[%emt 0:00:49]} 33. Rxh4 {[%emt 0:00:06]} Ke6 {[%emt 0:04:36] [#]} (33... Rd4 $16 34. Rh5 Kd6) 34. Rh7 $1 $18 {[%emt 0:07:57]} a6 {[%emt 0:02:00]} 35. bxa6 {[%emt 0:01:01]} Rd4 {[%emt 0:00:07]} (35... c4 {was called for.} 36. Rc7 Ra8 37. Re1+ (37. Rxc4 Rxa6 38. Ra1 Kf7 $18) 37... Re5 38. Rxe5+ fxe5 39. Rxc4 Rxa6) 36. Ra1 $18 {[%emt 0:01:22]} Rd6 {[%emt 0:02:43]} 37. a7 {[%emt 0:04:31]} Ra6 {[%emt 0:00:03]} 38. Re1+ {[%emt 0:00:49]} Kd6 {[%emt 0:03:46]} 39. Rb7 {[%emt 0:01:03]} Ra8 {[%emt 0:00:27]} 40. Rf1 {[%emt 0:00:41]} (40. Rf7 $18 {and White stays clearly on top.} Rxa4 41. Rxf6+ Kd5 42. Rd1+ Ke5 43. Rc6) 40... R8xa7 {[%emt 0:04:15]} 41. Rxf6+ {[%emt 0:04:23]} (41. Rb5 $16) 41... Ke5 $11 {[%emt 0:01:29]} 42. Rxa6 {[%emt 0:01:49]} Rxa6 {[%emt 0:01:19]} 43. Kh2 {[%emt 0:01:04]} c4 {[%emt 0:18:13]} 44. g4 {[%emt 0:06:40]} Rxa4 {[%emt 0:04:08]} 45. Kg3 {[%emt 0:05:41]} c3 {[%emt 0:00:40]} 46. Rc7 {[%emt 0:10:27]} Kd4 {[%emt 0:00:09]} 47. g5 {[%emt 0:01:42]} Rc4 $1 {[%emt 0:00:23]} 48. Rxc4+ {[%emt 0:00:20]} Kxc4 {[%emt 0:00:04]} 49. g6 {[%emt 0:00:03]} c2 {[%emt 0:00:04]} 50. g7 {[%emt 0:00:03]} c1=Q {[%emt 0:00:11]} 51. g8=Q+ {[%emt 0:00:05]} (51. g8=R {leads to mate.} Qg1+ 52. Kf3 Qxg8 53. Ke3 Qg2 54. Kf4 Qxh3 55. Ke5 Qh5+ 56. Ke6 Kc5 57. Ke7 Qf5 58. Kd8 Kd6 59. Ke8 Qf4 60. Kd8 Qf8#) 51... Kd4 {[%emt 0:00:31]} 52. Kh4 {[%emt 0:02:22]} Qf4+ {[%emt 0:01:07]} 53. Qg4 {[%emt 0:00:27]} Ke5 {[%emt 0:00:05]} 54. Kh5 {[%emt 0:00:21]} Qf7+ {[%emt 0:00:54]} 55. Kh6 {[%emt 0:01:00]} Qf6+ {[%emt 0:01:22]} 56. Kh7 {[%emt 0:00:44]} Qf7+ {[%emt 0:00:20]} 57. Qg7+ {[%emt 0:00:10]} Qxg7+ {[%emt 0:00:07]} 58. Kxg7 {[%emt 0:00:04]} Kf4 {[%emt 0:00:06]} 1/2-1/2

[Event "Fagernes Chess GM-Swiss 2024"]
[Site "Fagernes"]
[Date "2024.03.28"]
[Round "6.11"]
[White "Kistrup, Nicolai"]
[Black "Ghasi, Ameet K"]
[Result "0-1"]
[ECO "E93"]
[WhiteElo "2324"]
[BlackElo "2485"]
[Annotator "TA"]
[PlyCount "76"]
[EventDate "2024.03.25"]
[EventType "swiss"]
[EventCountry "NOR"]
[SourceTitle "playchess.com"]
[Source "ChessBase"]
[SourceQuality "1"]
[TimeControl "40/6000+30:2400+30"]

{[%evp 22,76,65,54,87,70,89,97,93,61,74,38,30,31,39,44,129,0,-5,-40,130,130,112,19,38,-104,-53,-98,50,14,28,20,23,-61,-52,-72,-62,-49,-46,-75,-27,-109,0,-341,-291,-296,-287,-933,-936,-1806,-1768,-29989,-1731,-29996,-29997,-29997,-29998]} 1. d4 {[%emt 0:00:03]} Nf6 {[%emt 0:02:00]} 2. c4 {[%emt 0:00:07]} g6 {[%emt 0:00:09]} 3. Nc3 {[%emt 0:00:04]} Bg7 {[%emt 0:00:09]} 4. e4 {[%emt 0:00:04]} d6 {[%emt 0:00:05]} 5. h3 {[%emt 0:00:03]} Nbd7 {[%emt 0:03:30]} 6. Be3 {[%emt 0:00:29]} e5 {[%emt 0:04:25]} 7. d5 {[%emt 0:00:06]} Nc5 {[%emt 0:00:15]} 8. Qc2 {[%emt 0:00:09]} a5 {[%emt 0:00:25]} 9. Nf3 {[%emt 0:00:17][%cal Bg1f3,Bf3d2,Bd2e4][%mdl 32]} O-O {[%emt 0:05:45]} 10. O-O-O {[%emt 0:00:09]} Qe7 {[%emt 0:06:54]} 11. g4 {[%emt 0:07:04][%cal Bg2g4,Bg4g5][%mdl 32]} Bd7 {[%emt 0:15:35]} 12. Be2 {[%emt 0:05:30]} b6 {[%emt 0:04:07]} 13. Nd2 {[%emt 0:06:43]} c6 {[%emt 0:03:01]} 14. g5 {[%emt 0:08:27]} Ne8 {[%emt 0:01:11] White is better.} 15. h4 {[%emt 0:06:13][%cal Bh3h4,Bh4h5][%mdl 32]} Nc7 {[%emt 0:07:05]} 16. h5 {[%emt 0:03:08]} cxd5 {[%emt 0:03:56]} 17. exd5 {[%emt 0:06:30]} Bf5 {[%emt 0:05:44] Prevents f3} 18. Nde4 {[%emt 0:02:30]} N7a6 {[%emt 0:01:10]} (18... Nxe4 $1 $14 19. Nxe4 Rfc8) 19. Bxc5 {[%emt 0:24:27]} (19. f3 $16) 19... Nxc5 $11 {[%emt 0:00:57]} 20. Rdg1 {[%emt 0:00:49]} (20. f3 {simplifies} Bxe4 21. Nxe4 Nxe4 22. fxe4 Rfc8 23. Qd2) 20... Rfc8 $2 {[%emt 0:12:32]} (20... Nxe4 $15 21. Nxe4 Rfc8) 21. f3 $1 $16 {[%emt 0:08:07]} a4 {[%emt 0:05:51][%cal Ba5a4,Ba4a3][%mdl 32]} 22. Rh4 {[%emt 0:05:52]} (22. Kb1 $16) 22... Ra5 {[%emt 0:08:02][%cal Ob6b5]} 23. Bf1 {[%emt 0:13:41] [#]} (23. hxg6 $14 {keeps the upper hand.} fxg6 24. Kb1) 23... b5 $1 {[%emt 0:06:44][%mdl 512]} 24. cxb5 {[%emt 0:03:43]} (24. Nf6+ Qxf6) 24... Bxe4 {[%emt 0:05:01]} (24... a3 $17 25. b3 Qa7) 25. fxe4 $14 {[%emt 0:00:12]} a3 $1 {[%emt 0:03:54]} 26. b3 {[%emt 0:03:00] Black must now prevent Kb1.} (26. b4 Na4 27. Rh3 (27. bxa5 $2 Rxc3 $19) 27... Raa8 $17) 26... Qa7 $1 {[%emt 0:01:00][%cal Oc5b3]} 27. Rg3 {[%emt 0:05:07] [#]} ({White should play} 27. Rgh1 $1 $11 Nxb3+ 28. Qxb3) 27... Nxb3+ $1 $15 {[%emt 0:01:19]} 28. Qxb3 {[%emt 0:00:25] Hoping for b6.} Qf2 $36 {[%emt 0:00:05][%csl LRf1,LRg3][%mdl 2048] Black has the initiative. Chess con chili.} 29. Rhh3 {[%emt 0:01:03] Threatens to win with Bd3.} Qxf1+ {[%emt 0:00:18]} 30. Kd2 {[%emt 0:00:28]} gxh5 {[%emt 0:03:12] Black has more active pieces.} (30... Qf4+ $17 31. Kd3 Qf1+ 32. Ne2 Rc5 (32... Rc1 33. hxg6 hxg6 34. Rf3 $16)) 31. Qd1 {[%emt 0:00:36]} (31. Ne2 $1 $11) 31... Qf4+ {[%emt 0:00:38]} (31... Qf2+ $17 32. Qe2 Qd4+ 33. Rd3 Qg1 (33... Rxc3 $2 34. Rxd4 exd4 35. b6 $18)) 32. Kd3 $2 {[%emt 0:00:43][%mdl 8192] [#]} (32. Re3 $1 $11 {and White has nothing to worry.}) 32... Rxc3+ $1 {[%emt 0:00:35][%mdl 512]} 33. Kxc3 {[%emt 0:00:05] Strongly threatening Kb4.} Qxe4 {[%emt 0:00:26]} ({Less strong is} 33... Rxb5 34. Qe1 $15) 34. Qd3 {[%emt 0:00:58]} (34. Re3 Qf4 35. Kc2 (35. Qxh5 $2 {too greedy.} Qd4+ 36. Kc2 Qb2+ 37. Kd1 Qa1+ 38. Ke2 Qxa2+ 39. Kf1 Qb1+ 40. Kg2 a2 $19) 35... Rxb5 (35... Qxg5 36. Qf1 $11) (35... Qc4+ $2 36. Kb1 $19) 36. Rb3 Qf5+ 37. Rhd3 Rxb3 (37... Rxd5 $2 38. Qf3 $19) (37... Rc5+ $2 38. Kb1 $19) 38. Kxb3) 34... Qa4 $19 {[%emt 0:00:51]} 35. Qf5 {[%emt 0:00:35]} Rxb5 {[%emt 0:00:24]} 36. Qc8+ {[%emt 0:00:26]} Bf8 {[%emt 0:00:01] ( -> ...Rb2)} 37. Kd2 {[%emt 0:00:36]} Rb2+ {[%emt 0:00:08]} 38. Ke1 {[%emt 0:00:25]} Qe4+ {[%emt 0:00:15] Weighted Error Value: White=1.26/Black=0.33.  Loses game:     	White=1     	---        Mistake:       	White=6     	Black=6      Inaccurate:     	White=6     	---        OK:         	White=4     	Black=7      Best:        	White=2     	Black=1      Strong:       	White=1     	Black=2      Brilliant:      	---       	Black=1} 0-1

[Event "Fagernes Chess GM-Swiss 2024"]
[Site "Fagernes"]
[Date "2024.03.28"]
[Round "6.12"]
[White "Petkov, Momchil"]
[Black "Kenneskog, Theodor"]
[Result "1-0"]
[ECO "B90"]
[WhiteElo "2500"]
[BlackElo "2358"]
[Annotator "TA"]
[PlyCount "81"]
[EventDate "2024.03.25"]
[EventType "swiss"]
[EventCountry "NOR"]
[SourceTitle "playchess.com"]
[Source "ChessBase"]
[SourceQuality "1"]
[TimeControl "40/6000+30:2400+30"]

{[%evp 13,81,32,23,8,7,14,6,8,11,-16,31,20,43,13,0,13,17,-36,41,38,62,55,87,97,94,54,55,4,24,0,69,0,0,0,43,40,39,31,173,174,221,223,239,225,284,279,264,208,210,204,200,213,295,297,329,306,316,273,430,363,466,471,454,462,29981,29982,29991,29992,29994,29995]} 1. e4 {[%emt 0:00:12]} c5 {[%emt 0:00:33]} 2. Nf3 {[%emt 0:00:09]} d6 {[%emt 0:00:04]} 3. d4 {[%emt 0:00:18]} cxd4 {[%emt 0:00:06]} 4. Nxd4 {[%emt 0:00:07]} Nf6 {[%emt 0:00:05]} 5. Nc3 {[%emt 0:00:12]} a6 {[%emt 0:00:05]} 6. Be3 {[%emt 0:00:16]} e5 {[%emt 0:00:24]} 7. Nb3 {[%emt 0:00:10]} Be7 {[%emt 0:00:19]} 8. Rg1 {[%emt 0:00:18]} Ng4 {[%emt 0:09:01]} 9. Bd2 {[%emt 0:00:13]} Be6 {[%emt 0:13:35][%cal Od8b6]} (9... Nxh2 $6 10. Be2 $18) 10. h3 {[%emt 0:01:03] The position is equal.} Nf6 {[%emt 0:00:05]} 11. Qf3 {[%emt 0:00:35]} Nbd7 {[%emt 0:01:03]} (11... O-O $11 {should be considered.}) 12. O-O-O $14 {[%emt 0:11:02]} Rc8 {[%emt 0:01:19]} 13. Nd5 {[%emt 0:11:37]} Bxd5 {[%emt 0:05:12]} 14. exd5 {[%emt 0:03:11]} Qc7 {[%emt 0:01:21]} 15. c4 {[%emt 0:06:11] Active counter play!} (15. Bd3 $11) 15... O-O {[%emt 0:34:08]} (15... b5 $15 16. Kb1 bxc4) 16. Kb1 $1 {[%emt 0:02:19]} b6 {[%emt 0:00:15]} 17. g4 {[%emt 0:07:32][%cal Bg2g4,Bg4g5][%mdl 32]} a5 {[%emt 0:01:05][%cal Ba6a5,Ba5a4][%mdl 32]} 18. g5 {[%emt 0:04:14]} Ne8 {[%emt 0:00:05]} 19. Bd3 {[%emt 0:07:10] Black is weak on the light squares} (19. h4 {simplifies} f5 20. a4 Nc5 21. Nxc5 Qxc5 22. h5) 19... a4 {[%emt 0:04:09]} 20. Nc1 {[%emt 0:12:28]} (20. Na1 $14) 20... Nc5 $11 {[%emt 0:04:22][%cal Of7f5]} 21. Bc2 {[%emt 0:05:07]} Qb7 {[%emt 0:12:07]} ({Better is} 21... f5 $11) 22. Rg4 $40 {[%emt 0:04:31][%mdl 128] White attacks.} ({White should play} 22. Nd3 $14) 22... g6 {[%emt 0:06:26]} 23. Qe2 {[%emt 0:06:35]} b5 {[%emt 0:01:12]} 24. cxb5 {[%emt 0:02:07]} Nc7 {[%emt 0:00:07]} 25. Bxa4 {[%emt 0:01:45]} Nxd5 {[%emt 0:02:02] [#] This costs Black the game.} (25... Nxa4 $14 26. Rxa4 Rb8 (26... Nxb5 $2 27. Rb4 $18)) 26. Bc2 $1 $18 {[%emt 0:01:47]} Nc7 {[%emt 0:06:52]} (26... Ne6 $142 27. a4 Ndf4 (27... Nd4 $2 28. Rxd4 exd4 29. Be4 $18) 28. Bxf4 (28. Qe4 Qc7 $18) 28... Nxf4) 27. a4 {[%emt 0:02:35]} N7e6 {[%emt 0:00:04]} 28. Be3 {[%emt 0:01:46] Wards off Nd4} Ra8 {[%emt 0:04:17]} 29. Bxc5 {[%emt 0:02:14]} Nxc5 {[%emt 0:00:05]} 30. Be4 {[%emt 0:00:04]} Nxe4 {[%emt 0:00:20]} 31. Qxe4 {[%emt 0:00:05]} Qa7 {[%emt 0:00:14]} 32. Qe3 {[%emt 0:03:19]} Qb8 {[%emt 0:00:31]} 33. Na2 {[%emt 0:01:32][%cal Bc1a2,Ba2c3,Bc3d5,Bd5f6][%mdl 32]} Bd8 {[%emt 0:01:00]} 34. Qd3 {[%emt 0:01:28]} Qa7 {[%emt 0:02:37]} 35. Nc3 {[%emt 0:02:40]} Bb6 {[%emt 0:00:31]} (35... Qxf2 {keeps fighting.} 36. Rf1 (36. Qxd6 Qf5+ 37. Qd3 Kg7 $18) 36... Qa7) 36. Nd5 {[%emt 0:03:12]} Bxf2 {[%emt 0:01:48]} 37. Nf6+ {[%emt 0:00:11]} Kg7 {[%emt 0:00:04]} 38. Qxd6 {[%emt 0:00:18]} Bd4 {[%emt 0:00:42]} (38... Qc5 $18 39. b6 Qxd6 40. Rxd6 Rh8) 39. Rdxd4 {[%emt 0:00:39] White mates.} exd4 {[%emt 0:00:36]} 40. Qe5 {[%emt 0:02:50]} Rfd8 {[%emt 0:01:04]} 41. Rh4 {[%emt 0:40:37] Weighted Error Value: White=0.16 (very precise) /Black=0.42.  Mistake:       	White=3     	Black=7      Inaccurate:     	White=3     	Black=3      OK:         	White=10    	Black=11     Best:        	White=5     	Black=1      Strong:       	White=1     	---} 1-0

[Event "Fagernes Chess GM-Swiss 2024"]
[Site "Fagernes"]
[Date "2024.03.28"]
[Round "6.13"]
[White "Mitusov, Semen"]
[Black "Carlsson, Ludvig"]
[Result "1-0"]
[ECO "B33"]
[WhiteElo "2487"]
[BlackElo "2350"]
[Annotator "TA"]
[PlyCount "49"]
[EventDate "2024.03.25"]
[EventType "swiss"]
[EventCountry "NOR"]
[SourceTitle "playchess.com"]
[Source "ChessBase"]
[SourceQuality "1"]
[TimeControl "40/6000+30:2400+30"]

{[%evp 20,49,38,22,9,16,12,8,12,0,0,-23,-8,-23,-11,-11,0,0,-4,-13,0,0,0,-5,0,0,156,167,695,705,976,973]} 1. e4 {[%emt 0:00:58]} c5 {[%emt 0:00:16]} 2. Nf3 {[%emt 0:00:53][%cal Bg1f3,Bf3d4,Bd4b5,Bb5a3,Ba3c2][%mdl 32]} Nc6 {[%emt 0:00:16]} 3. d4 {[%emt 0:01:26]} cxd4 {[%emt 0:00:13]} 4. Nxd4 {[%emt 0:00:05]} Nf6 {[%emt 0:00:20]} 5. Nc3 {[%emt 0:01:29]} e5 {[%emt 0:00:15]} 6. Ndb5 {[%emt 0:00:46]} d6 {[%emt 0:00:12]} 7. Bg5 {[%emt 0:02:53]} a6 {[%emt 0:00:10]} 8. Na3 {[%emt 0:01:00]} b5 {[%emt 0:00:11][%cal Bb7b5,Bb5b4][%mdl 32]} 9. Nd5 {[%emt 0:00:07]} Be7 {[%emt 0:00:11]} 10. Bxf6 {[%emt 0:00:19]} Bxf6 {[%emt 0:00:12]} 11. c4 {[%emt 0:00:07]} b4 {[%emt 0:00:16]} 12. Nc2 {[%emt 0:00:05]} O-O {[%emt 0:00:11]} 13. b3 {[%emt 0:04:21]} a5 {[%emt 0:01:49] The position is equal.} 14. h4 {[%emt 0:02:27]} Be6 {[%emt 0:02:16]} (14... Bxh4 $2 {too greedy.} 15. Qh5 Bxf2+ 16. Kxf2 $18) 15. Nxf6+ {[%emt 0:09:41]} Qxf6 {[%emt 0:01:43]} 16. g3 {[%emt 0:00:21]} (16. Qxd6 $5 Nd4 17. Nxd4 $11) 16... a4 {[%emt 0:05:25] aiming for ...axb3.} 17. Bg2 {[%emt 0:06:24]} Qd8 {[%emt 0:05:16]} 18. O-O {[%emt 0:02:12][%cal Bh1f1,Bf1d1,Bd1d6][%mdl 32]} Qb6 {[%emt 0:00:23]} 19. Kh2 {[%emt 0:10:56]} axb3 {[%emt 0:04:07]} 20. axb3 {[%emt 0:00:15]} Rxa1 {[%emt 0:00:16]} 21. Qxa1 {[%emt 0:01:04]} Qa5 {[%emt 0:02:45]} 22. Rd1 {[%emt 0:08:25]} Ra8 $2 {[%emt 0:02:05] [#]} (22... Qb6 $11) 23. Qxa5 $1 $16 {[%emt 0:01:28]} Rxa5 {[%emt 0:02:52]} (23... Nxa5 24. Ra1 (24. Rxd6 Nxb3 25. Nxb4 Bxc4 $11) 24... Bc8) 24. Rxd6 $18 {[%emt 0:00:57]} Rc5 {[%emt 0:00:18] [#]} 25. Nxb4 $1 {[%emt 0:00:14][%mdl 512] Weighted Error Value: White=0.06 (flawless) /Black=0.61.  Mistake:       	---       	Black=2      Inaccurate:     	---       	Black=1      OK:         	White=3     	Black=4      Best:        	White=1     	---        Strong:       	White=1     	---} 1-0